fUSD/lending_fUSD_20240804
["ID","MTS","AMOUNT","RATE_DAILY","PERIOD"]
[334154380,1722798675665,-419.87653924,0.00023095,7]
[334154381,1722798675677,-452.08085008,0.00023095,7]
[334154382,1722798675687,-268.52,0.00023095,9]
[334154383,1722798675697,-315.35,0.00023095,9]
[334154384,1722798675708,-556.26669068,0.00023095,9]
[334154385,1722798675764,-511.87330932,0.00023095,9]
[334154386,1722798675773,-343.61,0.00023095,9]
[334154387,1722798675783,-345.1219033,0.00023178,9]
[334154388,1722798675793,-363.41478738,0.00023178,9]
[334154389,1722798675805,-136.58521262,0.00023178,9]
[334154390,1722798675815,-500.0,0.00023178,9]
[334154391,1722798675824,-215.31814849,0.00023178,9]
[334154392,1722798675839,-284.68185151,0.00023178,9]
[334154393,1722798675849,-500.0,0.00023178,9]
[334154394,1722798675858,-500.0,0.00023178,9]
[334154395,1722798675868,-154.94,0.00023178,9]
[334154396,1722798675878,-500.0,0.00023178,9]
[334154397,1722798675888,-500.0,0.00023178,9]
[334154398,1722798675898,-445.82,0.00023178,9]
[334154399,1722798675907,-48.74850732,0.00023178,9]
[334154400,1722798675919,-451.25149268,0.00023178,9]
[334154401,1722798675928,-500.0,0.00023178,9]
[334154402,1722798675938,-500.0,0.00023178,9]
[334154403,1722798675948,-500.0,0.00023178,9]
[334154404,1722798675957,-364.5,0.00023178,9]
[334154405,1722798675967,-500.0,0.00023178,9]
[334154406,1722798675976,-500.0,0.00023178,9]
[334154407,1722798675986,-500.0,0.00023178,9]
[334154408,1722798675996,-500.0,0.00023178,9]
[334154409,1722798676005,-504.88,0.00023178,9]
[334154410,1722798676015,-500.0,0.00023178,9]
[334154411,1722798676024,-743.84,0.00023178,9]
[334154412,1722798676034,-506.6,0.00023178,9]
[334154413,1722798676043,-500.0,0.00023178,9]
[334154414,1722798676052,-500.0,0.00023178,9]
[334154415,1722798676063,-500.0,0.00023178,9]
[334154416,1722798676073,-536.9,0.00023178,9]
[334154417,1722798676087,-557.28,0.00023178,9]
[334154418,1722798676096,-646.35,0.00023178,7]
[334154419,1722798676106,-500.0,0.00023178,9]
[334154420,1722798676116,-500.0,0.00023178,9]
[334154421,1722798676125,-871.25,0.00023178,9]
[334154422,1722798676135,-405.35,0.00023178,9]
[334154423,1722798676145,-526.81,0.00023178,9]
[334154424,1722798676155,-634.86,0.00023178,9]
[334154425,1722798676163,-500.0,0.00023178,9]
[334154426,1722798676173,-500.0,0.00023178,9]
[334154427,1722798676183,-500.0,0.00023178,9]
[334154428,1722798676194,-500.0,0.00023178,9]
[334154429,1722798676203,-500.0,0.00023178,9]
[334154430,1722798676213,-500.0,0.00023178,9]
[334154431,1722798676223,-500.0,0.00023178,9]
[334154432,1722798676236,-500.0,0.00023178,9]
[334154433,1722798676246,-500.0,0.00023178,9]
[334154434,1722798676256,-500.0,0.00023178,9]
[334154435,1722798676266,-500.0,0.00023178,9]
[334154436,1722798676276,-500.0,0.00023178,9]
[334154437,1722798676355,-500.0,0.00023178,9]
[334154438,1722798676365,-1014.67,0.00023178,9]
[334154439,1722798676374,-648.72,0.00023178,9]
[334154440,1722798676383,-500.0,0.00023178,9]
[334154441,1722798676395,-500.0,0.00023178,9]
[334154442,1722798676404,-500.0,0.00023178,9]
[334154443,1722798676418,-324.28,0.00023178,9]
[334154444,1722798676435,-500.0,0.00023178,9]
[334154445,1722798676445,-500.0,0.00023178,9]
[334154446,1722798676454,-500.0,0.00023178,9]
[334154447,1722798676463,-911.13,0.00023178,9]
[334154448,1722798676472,-535.76,0.00023178,9]
[334154449,1722798676482,-500.0,0.00023178,9]
[334154450,1722798676491,-770.18,0.00023178,9]
[334154451,1722798676500,-500.0,0.00023178,9]
[334154452,1722798676510,-500.0,0.00023178,9]
[334154453,1722798676520,-500.0,0.00023178,9]
[334154454,1722798676529,-703.72,0.00023178,9]
[334154455,1722798676539,-500.0,0.00023178,9]
[334154456,1722798676548,-500.0,0.00023178,9]
[334154457,1722798676558,-376.98,0.00023178,9]
[334154458,1722798676567,-500.0,0.00023178,9]
[334154459,1722798676576,-679.08,0.00023178,9]
[334154460,1722798676587,-500.0,0.00023178,9]
[334154461,1722798676596,-642.83,0.00023178,9]
[334154462,1722798676606,-500.0,0.00023178,9]
[334154463,1722798676615,-500.0,0.00023178,9]
[334154464,1722798676624,-567.09,0.00023178,9]
[334154465,1722798676634,-500.0,0.00023178,9]
[334154466,1722798676643,-227.77,0.00023178,9]
[334154467,1722798676652,-500.0,0.00023178,9]
[334154468,1722798676661,-500.0,0.00023178,9]
[334154469,1722798676672,-413.49,0.00023178,9]
[334154470,1722798676681,-500.0,0.00023178,9]
[334154471,1722798676691,-462.11,0.00023178,9]
[334154472,1722798676700,-692.78,0.00023178,9]
[334154473,1722798676710,-500.0,0.00023178,9]
[334154474,1722798676720,-500.0,0.00023178,9]
[334154475,1722798676729,-368.81,0.00023178,9]
[334154476,1722798676741,-500.0,0.00023178,9]
[334154477,1722798676750,-500.0,0.00023178,9]
[334154478,1722798676759,-193.17,0.00023178,9]
[334154479,1722798676769,-500.0,0.00023178,9]
[334154480,1722798676779,-500.0,0.00023178,9]
[334154481,1722798676788,-1311.26,0.00023178,9]
[334154482,1722798676798,-500.0,0.00023178,9]
[334154483,1722798676808,-500.0,0.00023178,9]
[334154484,1722798676818,-825.98,0.00023178,9]
[334154485,1722798676827,-500.0,0.00023178,9]
[334154486,1722798676841,-573.05,0.00023178,9]
[334154487,1722798676851,-500.0,0.00023178,9]
[334154488,1722798676859,-500.0,0.00023178,9]
[334154489,1722798676869,-500.0,0.00023178,9]
[334154490,1722798676878,-500.0,0.00023178,9]
[334154491,1722798676888,-500.0,0.00023178,9]
[334154492,1722798676897,-176.65,0.00023178,9]
[334154493,1722798676907,-500.0,0.00023178,9]
[334154494,1722798676916,-500.0,0.00023178,9]
[334154495,1722798676926,-500.0,0.00023178,9]
[334154496,1722798676935,-156.36,0.00023178,9]
[334154497,1722798676945,-500.0,0.00023178,9]
[334154498,1722798676955,-516.4,0.00023178,9]
[334154499,1722798676965,-500.0,0.00023178,9]
[334154500,1722798676975,-500.0,0.00023178,9]
[334154501,1722798676985,-500.0,0.00023178,9]
[334154502,1722798676994,-500.0,0.00023178,9]
[334154503,1722798677003,-500.0,0.00023178,9]
[334154504,1722798677013,-500.0,0.00023178,9]
[334154505,1722798677023,-500.0,0.00023178,9]
[334154506,1722798677033,-269.16,0.00023178,9]
[334154507,1722798677042,-500.0,0.00023178,9]
[334154508,1722798677051,-531.25,0.00023178,9]
[334154509,1722798677060,-287.76727256,0.00023178,9]
[334154510,1722798677081,-212.23272744,0.00023178,9]
[334154511,1722798677091,-574.45,0.00023178,9]
[334154512,1722798677100,-500.0,0.00023178,9]
[334154513,1722798677110,-334.04,0.00023178,9]
[334154514,1722798677119,-564.61,0.00023178,9]
[334154515,1722798677128,-500.0,0.00023178,9]
[334154516,1722798677137,-642.26,0.00023178,9]
[334154517,1722798677147,-273.337968,0.00023178,7]
[334154518,1722798677156,-500.0,0.00023178,9]
[334154519,1722798677166,-500.0,0.00023178,9]
[334154520,1722798677177,-177.02,0.00023178,9]
[334154521,1722798677190,-500.0,0.00023178,9]
[334154522,1722798677199,-500.0,0.00023178,9]
[334154523,1722798677208,-500.0,0.00023178,9]
[334154524,1722798677218,-500.0,0.00023178,9]
[334154525,1722798677229,-510.4,0.00023178,9]
[334154526,1722798677239,-500.0,0.00023178,9]
[334154527,1722798677248,-500.0,0.00023178,9]
[334154528,1722798677258,-500.0,0.00023178,9]
[334154529,1722798677267,-500.0,0.00023178,9]
[334154530,1722798677278,-500.0,0.00023178,9]
[334154531,1722798677288,-500.0,0.00023178,9]
[334154532,1722798677297,-842.57,0.00023178,9]
[334154533,1722798677308,-500.0,0.00023178,9]
[334154534,1722798677317,-500.0,0.00023178,9]
[334154535,1722798677327,-500.0,0.00023178,9]
[334154536,1722798677340,-500.0,0.00023178,9]
[334154537,1722798677350,-500.0,0.00023178,9]
[334154538,1722798677359,-500.0,0.00023178,9]
[334154539,1722798677369,-948.95,0.00023178,9]
[334154540,1722798677378,-151.0,0.00023178,7]
[334154541,1722798677388,-500.0,0.00023178,9]
[334154542,1722798677399,-500.0,0.00023178,9]
[334154543,1722798677409,-500.0,0.00023178,9]
[334154544,1722798677418,-500.0,0.00023178,9]
[334154545,1722798677427,-500.0,0.00023178,9]
[334154546,1722798677438,-182.5995,0.00023178,7]
[334154547,1722798677448,-646.46,0.00023178,9]
[334154548,1722798677458,-500.0,0.00023178,9]
[334154549,1722798677468,-166.69,0.00023178,9]
[334154550,1722798677477,-278.07,0.00023178,9]
[334154551,1722798677487,-780.14,0.00023178,9]
[334154552,1722798677496,-500.0,0.00023178,9]
[334154553,1722798677506,-182.5995,0.00023178,7]
[334154554,1722798677515,-500.0,0.00023178,9]
[334154555,1722798677525,-500.0,0.00023178,9]
[334154556,1722798677534,-500.0,0.00023178,9]
[334154557,1722798677544,-525.94,0.00023178,9]
[334154558,1722798677553,-335.38,0.00023178,9]
[334154559,1722798677563,-559.64,0.00023178,9]
[334154560,1722798677572,-673.44,0.00023178,9]
[334154561,1722798677584,-500.0,0.00023178,9]
[334154562,1722798677594,-500.0,0.00023178,9]
[334154563,1722798677603,-1195.31,0.00023178,9]
[334154564,1722798677612,-180.185957,0.00023178,7]
[334154565,1722798677622,-500.0,0.00023178,9]
[334154566,1722798677631,-500.0,0.00023178,9]
[334154567,1722798677641,-500.0,0.00023178,9]
[334154568,1722798677650,-500.0,0.00023178,9]
[334154569,1722798677659,-500.0,0.00023178,9]
[334154570,1722798677669,-299.44,0.00023178,9]
[334154571,1722798677678,-500.0,0.00023178,9]
[334154572,1722798677687,-500.0,0.00023178,9]
[334154573,1722798677697,-500.0,0.00023178,9]
[334154574,1722798677707,-500.0,0.00023178,9]
[334154575,1722798677716,-636.97,0.00023178,9]
[334154576,1722798677726,-500.0,0.00023178,9]
[334154577,1722798677735,-500.0,0.00023178,9]
[334154578,1722798677744,-500.0,0.00023178,9]
[334154579,1722798677754,-500.0,0.00023178,9]
[334154580,1722798677763,-515.25,0.00023178,9]
[334154581,1722798677772,-500.0,0.00023178,9]
[334154582,1722798677782,-500.0,0.00023178,9]
[334154583,1722798677791,-500.0,0.00023178,9]
[334154584,1722798677800,-500.0,0.00023178,9]
[334154585,1722798677810,-500.0,0.00023178,9]
[334154586,1722798677819,-194.38,0.00023178,9]
[334154587,1722798677831,-701.63,0.00023178,9]
[334154588,1722798677841,-500.0,0.00023178,9]
[334154589,1722798677851,-500.0,0.00023178,9]
[334154590,1722798677860,-651.57,0.00023178,9]
[334154591,1722798677870,-464.99,0.00023178,9]
[334154592,1722798677879,-500.0,0.00023178,9]
[334154593,1722798677888,-603.15,0.00023178,9]
[334154594,1722798677897,-500.0,0.00023178,9]
[334154595,1722798677906,-500.0,0.00023178,9]
[334154596,1722798677915,-500.0,0.00023178,9]
[334154597,1722798677924,-609.09,0.00023178,9]
[334154598,1722798677933,-500.0,0.00023178,9]
[334154599,1722798677943,-500.0,0.00023178,9]
[334154600,1722798677952,-894.72,0.00023178,9]
[334154601,1722798677961,-500.0,0.00023178,9]
[334154602,1722798677971,-500.0,0.00023178,9]
[334154603,1722798677980,-500.0,0.00023178,9]
[334154604,1722798677989,-500.0,0.00023178,9]
[334154605,1722798677998,-158.755298,0.00023178,7]
[334154606,1722798678007,-500.0,0.00023178,9]
[334154607,1722798678016,-500.0,0.00023178,9]
[334154608,1722798678026,-529.55,0.00023178,9]
[334154609,1722798678035,-207.54,0.00023178,9]
[334154610,1722798678045,-500.0,0.00023178,9]
[334154611,1722798678054,-500.0,0.00023178,9]
[334154612,1722798678063,-158.755298,0.00023178,7]
[334154613,1722798678072,-377.37,0.00023178,9]
[334154614,1722798678083,-500.0,0.00023178,9]
[334154615,1722798678092,-500.0,0.00023178,9]
[334154616,1722798678102,-500.0,0.00023178,9]
[334154617,1722798678112,-240.747428,0.00023178,7]
[334154618,1722798678122,-500.0,0.00023178,9]
[334154619,1722798678131,-151.0,0.00023178,7]
[334154620,1722798678140,-500.0,0.00023178,9]
[334154621,1722798678150,-500.0,0.00023178,9]
[334154622,1722798678159,-617.97,0.00023178,9]
[334154623,1722798678169,-637.71158624,0.00023178,9]
[334154624,1722798678178,-500.0,0.00023178,9]
[334154625,1722798678187,-582.97,0.00023178,9]
[334154626,1722798678196,-727.4,0.00023178,9]
[334154627,1722798678205,-631.09,0.00023178,9]
[334154628,1722798678215,-500.0,0.00023178,9]
[334154629,1722798678225,-1197.52,0.00023178,9]
[334154630,1722798678238,-500.0,0.00023178,9]
[334154631,1722798678247,-500.0,0.00023178,9]
[334154632,1722798678255,-500.0,0.00023178,9]
[334154633,1722798678264,-500.0,0.00023178,9]
[334154634,1722798678274,-500.0,0.00023178,9]
[334154635,1722798678283,-500.0,0.00023178,9]
[334154636,1722798678293,-500.0,0.00023178,9]
[334154637,1722798678302,-500.0,0.00023178,9]
[334154638,1722798678312,-500.0,0.00023178,9]
[334154639,1722798678323,-500.0,0.00023178,9]
[334154640,1722798678333,-500.0,0.00023178,9]
[334154641,1722798678343,-500.0,0.00023178,9]
[334154642,1722798678352,-648.35,0.00023178,9]
[334154643,1722798678362,-500.0,0.00023178,9]
[334154644,1722798678371,-737.23,0.00023178,9]
[334154645,1722798678380,-500.0,0.00023178,9]
[334154646,1722798678389,-500.0,0.00023178,9]
[334154647,1722798678399,-500.0,0.00023178,9]
[334154648,1722798678409,-500.0,0.00023178,9]
[334154649,1722798678418,-500.0,0.00023178,9]
[334154650,1722798678427,-200.0,0.00023178,7]
[334154651,1722798678436,-701.04,0.00023178,9]
[334154652,1722798678446,-500.0,0.00023178,9]
[334154653,1722798678455,-500.0,0.00023178,9]
[334154654,1722798678464,-571.99,0.00023178,9]
[334154655,1722798678474,-500.0,0.00023178,9]
[334154656,1722798678483,-170.56,0.00023178,9]
[334154657,1722798678492,-583.69,0.00023178,9]
[334154658,1722798678502,-500.0,0.00023178,9]
[334154659,1722798678512,-500.0,0.00023178,9]
[334154660,1722798678521,-500.0,0.00023178,9]
[334154661,1722798678530,-500.0,0.00023178,9]
[334154662,1722798678539,-949.82,0.00023178,9]
[334154663,1722798678549,-500.0,0.00023178,9]
[334154664,1722798678558,-500.0,0.00023178,9]
[334154665,1722798678567,-500.0,0.00023178,9]
[334154666,1722798678576,-535.43,0.00023178,9]
[334154667,1722798678588,-500.0,0.00023178,9]
[334154668,1722798678597,-500.0,0.00023178,9]
[334154669,1722798678606,-500.0,0.00023178,9]
[334154670,1722798678616,-503.16,0.00023178,9]
[334154671,1722798678625,-500.0,0.00023178,9]
[334154672,1722798678635,-766.82,0.00023178,9]
[334154673,1722798678644,-500.0,0.00023178,9]
[334154674,1722798678653,-500.0,0.00023178,9]
[334154675,1722798678663,-500.0,0.00023178,9]
[334154676,1722798678672,-304.62,0.00023178,9]
[334154677,1722798678681,-598.96,0.00023178,9]
[334154678,1722798678692,-500.0,0.00023178,9]
[334154679,1722798678701,-500.0,0.00023178,9]
[334154680,1722798678711,-500.0,0.00023178,9]
[334154681,1722798678720,-500.0,0.00023178,9]
[334154682,1722798678731,-500.0,0.00023178,9]
[334154683,1722798678741,-500.0,0.00023178,9]
[334154684,1722798678751,-705.49,0.00023178,9]
[334154685,1722798678761,-500.0,0.00023178,9]
[334154686,1722798678771,-500.0,0.00023178,9]
[334154687,1722798678781,-500.0,0.00023178,9]
[334154688,1722798678791,-500.0,0.00023178,9]
[334154689,1722798678801,-500.0,0.00023178,9]
[334154690,1722798678810,-500.0,0.00023178,9]
[334154691,1722798678819,-500.0,0.00023178,9]
[334154692,1722798678829,-500.0,0.00023178,9]
[334154693,1722798678841,-622.31,0.00023178,9]
[334154694,1722798678850,-500.0,0.00023178,9]
[334154695,1722798678860,-500.0,0.00023178,9]
[334154696,1722798678870,-500.0,0.00023178,9]
[334154697,1722798678879,-500.0,0.00023178,9]
[334154698,1722798678889,-500.0,0.00023178,9]
[334154699,1722798678899,-500.0,0.00023178,9]
[334154700,1722798678908,-692.56,0.00023178,9]
[334154701,1722798678918,-500.0,0.00023178,9]
[334154702,1722798678927,-500.0,0.00023178,9]
[334154703,1722798678937,-500.0,0.00023178,9]
[334154704,1722798678946,-619.72,0.00023178,9]
[334154705,1722798678955,-722.7,0.00023178,9]
[334154706,1722798678965,-500.0,0.00023178,9]
[334154707,1722798678974,-500.0,0.00023178,9]
[334154708,1722798678983,-500.0,0.00023178,9]
[334154709,1722798678993,-755.6,0.00023178,9]
[334154710,1722798679002,-500.0,0.00023178,9]
[334154711,1722798679011,-500.0,0.00023178,9]
[334154712,1722798679020,-500.0,0.00023178,9]
[334154713,1722798679030,-500.0,0.00023178,9]
[334154714,1722798679039,-500.0,0.00023178,9]
[334154715,1722798679048,-500.0,0.00023178,9]
[334154716,1722798679057,-500.0,0.00023178,9]
[334154717,1722798679066,-500.0,0.00023178,9]
[334154718,1722798679076,-656.8,0.00023178,9]
[334154719,1722798679088,-500.0,0.00023178,9]
[334154720,1722798679097,-361.34,0.00023178,9]
[334154721,1722798679106,-315.03,0.00023178,9]
[334154722,1722798679115,-500.0,0.00023178,9]
[334154723,1722798679124,-500.0,0.00023178,9]
[334154724,1722798679132,-238.12658585,0.00023178,9]
[334154725,1722798679142,-789.95,0.00023178,9]
[334154726,1722798679151,-500.0,0.00023178,9]
[334154727,1722798679161,-501.50620463,0.00023178,9]
[334154728,1722798679171,-474.02747434,0.00023178,9]
[334154729,1722798679180,-500.0,0.00023178,9]
[334154730,1722798679190,-526.65042796,0.00023178,9]
[334154731,1722798679199,-500.0,0.00023178,9]
[334154732,1722798679209,-500.0,0.00023178,9]
[334154733,1722798679220,-500.0,0.00023178,9]
[334154734,1722798679233,-500.0,0.00023178,9]
[334154735,1722798679242,-500.0,0.00023178,9]
[334154736,1722798679252,-500.0,0.00023178,9]
[334154737,1722798679261,-679.69,0.00023178,9]
[334154738,1722798679271,-500.0,0.00023178,9]
[334154739,1722798679281,-682.52,0.00023178,9]
[334154740,1722798679290,-563.63,0.00023178,9]
[334154741,1722798679300,-500.0,0.00023178,9]
[334154742,1722798679311,-500.0,0.00023178,9]
[334154743,1722798679320,-500.0,0.00023178,9]
[334154744,1722798679330,-500.0,0.00023178,9]
[334154745,1722798679342,-246.67800643,0.00023178,9]
[334154746,1722798679351,-579.47,0.00023178,9]
[334154747,1722798679361,-500.0,0.00023178,9]
[334154748,1722798679370,-500.0,0.00023178,9]
[334154749,1722798679380,-554.29,0.00023178,9]
[334154750,1722798679390,-500.0,0.00023178,9]
[334154751,1722798679400,-500.0,0.00023178,9]
[334154752,1722798679409,-500.0,0.00023178,9]
[334154753,1722798679419,-500.0,0.00023178,9]
[334154754,1722798679428,-500.0,0.00023178,9]
[334154755,1722798679437,-500.0,0.00023178,9]
[334154756,1722798679447,-500.0,0.00023178,9]
[334154757,1722798679457,-500.0,0.00023178,9]
[334154758,1722798679465,-500.0,0.00023178,9]
[334154759,1722798679475,-503.82,0.00023178,9]
[334154760,1722798679485,-393.54,0.00023178,9]
[334154761,1722798679495,-500.0,0.00023178,9]
[334154762,1722798679505,-500.0,0.00023178,9]
[334154763,1722798679514,-580.76,0.00023178,9]
[334154764,1722798679523,-500.0,0.00023178,9]
[334154765,1722798679532,-500.0,0.00023178,9]
[334154766,1722798679541,-500.0,0.00023178,9]
[334154767,1722798679551,-500.0,0.00023178,9]
[334154768,1722798679561,-500.0,0.00023178,9]
[334154769,1722798679570,-500.0,0.00023178,9]
[334154770,1722798679580,-525.91,0.00023178,9]
[334154771,1722798679593,-500.0,0.00023178,9]
[334154772,1722798679603,-500.0,0.00023178,9]
[334154773,1722798679614,-453.69,0.00023178,9]
[334154774,1722798679624,-500.0,0.00023178,9]
[334154775,1722798679635,-500.0,0.00023178,9]
[334154776,1722798679645,-500.0,0.00023178,9]
[334154777,1722798679655,-676.62,0.00023178,9]
[334154778,1722798679665,-681.9,0.00023178,9]
[334154779,1722798679674,-500.0,0.00023178,9]
[334154780,1722798679684,-507.65,0.00023178,9]
[334154781,1722798679695,-1159.52,0.00023178,9]
[334154782,1722798679705,-584.61,0.00023178,9]
[334154783,1722798679715,-500.0,0.00023178,9]
[334154784,1722798679725,-1027.3,0.00023178,9]
[334154785,1722798679735,-500.0,0.00023178,9]
[334154786,1722798679746,-500.0,0.00023178,9]
[334154787,1722798679756,-642.86,0.00023178,9]
[334154788,1722798679765,-531.83,0.00023178,9]
[334154789,1722798679775,-500.0,0.00023178,9]
[334154790,1722798679785,-500.0,0.00023178,9]
[334154791,1722798679795,-505.5,0.00023178,9]
[334154792,1722798679805,-500.0,0.00023178,9]
[334154793,1722798679816,-500.0,0.00023178,9]
[334154794,1722798679826,-500.0,0.00023178,9]
[334154795,1722798679839,-500.0,0.00023178,9]
[334154796,1722798679849,-500.0,0.00023178,9]
[334154797,1722798679859,-500.0,0.00023178,9]
[334154798,1722798679870,-1093.79,0.00023178,9]
[334154799,1722798679881,-500.0,0.00023178,9]
[334154800,1722798679891,-500.0,0.00023178,9]
[334154801,1722798679902,-500.0,0.00023178,9]
[334154802,1722798679912,-500.0,0.00023178,9]
[334154803,1722798679923,-500.0,0.00023178,9]
[334154804,1722798679933,-500.0,0.00023178,9]
[334154805,1722798679944,-500.0,0.00023178,9]
[334154806,1722798679955,-740.56,0.00023178,9]
[334154807,1722798679965,-500.0,0.00023178,9]
[334154808,1722798679975,-500.0,0.00023178,9]
[334154809,1722798679985,-500.0,0.00023178,9]
[334154810,1722798679995,-500.0,0.00023178,9]
[334154811,1722798680005,-500.0,0.00023178,9]
[334154812,1722798680015,-500.0,0.00023178,9]
[334154813,1722798680024,-745.12,0.00023178,9]
[334154814,1722798680034,-500.0,0.00023178,9]
[334154815,1722798680045,-385.24657461,0.00023178,9]
[334154816,1722798680055,-500.0,0.00023178,9]
[334154817,1722798680066,-500.0,0.00023178,9]
[334154818,1722798680075,-500.0,0.00023178,9]
[334154819,1722798680087,-1006.85,0.00023178,9]
[334154820,1722798680097,-500.0,0.00023178,9]
[334154821,1722798680106,-562.79,0.00023178,9]
[334154822,1722798680116,-747.91,0.00023178,9]
[334154823,1722798680126,-500.0,0.00023178,9]
[334154824,1722798680136,-500.0,0.00023178,9]
[334154825,1722798680146,-571.94,0.00023178,9]
[334154826,1722798680156,-891.22,0.00023178,9]
[334154827,1722798680165,-500.0,0.00023178,9]
[334154828,1722798680175,-500.0,0.00023178,9]
[334154829,1722798680185,-500.0,0.00023178,9]
[334154830,1722798680195,-500.0,0.00023178,9]
[334154831,1722798680204,-500.0,0.00023178,9]
[334154832,1722798680214,-4510.53,0.00023178,9]
[334154833,1722798680224,-802.68,0.00023178,9]
[334154834,1722798680239,-500.0,0.00023178,9]
[334154835,1722798680248,-500.0,0.00023178,9]
[334154836,1722798680258,-500.0,0.00023178,9]
[334154837,1722798680269,-500.0,0.00023178,9]
[334154838,1722798680279,-500.0,0.00023178,9]
[334154839,1722798680289,-500.0,0.00023178,9]
[334154840,1722798680299,-512.74,0.00023178,9]
[334154841,1722798680310,-500.0,0.00023178,9]
[334154842,1722798680320,-500.0,0.00023178,9]
[334154843,1722798680331,-500.0,0.00023178,9]
[334154844,1722798680343,-500.0,0.00023178,9]
[334154845,1722798680354,-560.30444348,0.00023178,9]
[334154846,1722798680364,-500.0,0.00023178,9]
[334154847,1722798680373,-500.0,0.00023178,9]
[334154848,1722798680383,-500.0,0.00023178,9]
[334154849,1722798680394,-500.0,0.00023178,9]
[334154850,1722798680405,-500.0,0.00023178,9]
[334154851,1722798680415,-511.44,0.00023178,9]
[334154852,1722798680426,-500.0,0.00023178,9]
[334154853,1722798680436,-500.0,0.00023178,9]
[334154854,1722798680447,-500.0,0.00023178,9]
[334154855,1722798680458,-707.46,0.00023178,9]
[334154856,1722798680468,-845.61,0.00023178,9]
[334154857,1722798680480,-500.0,0.00023178,9]
[334154858,1722798680490,-212.28129314,0.00023178,9]
[334154859,1722798680519,-287.71870686,0.00023178,9]
[334154860,1722798680529,-948.03,0.00023178,9]
[334154861,1722798680539,-500.0,0.00023178,9]
[334154862,1722798680549,-500.0,0.00023178,2]
[334154863,1722798680560,-1665.39,0.00023178,9]
[334154864,1722798680570,-500.0,0.00023178,9]
[334154865,1722798680580,-500.0,0.00023178,9]
[334154866,1722798680591,-507.96,0.00023178,9]
[334154867,1722798680601,-500.0,0.00023178,9]
[334154868,1722798680612,-500.0,0.00023178,9]
[334154869,1722798680622,-500.0,0.00023178,9]
[334154870,1722798680632,-500.0,0.00023178,9]
[334154871,1722798680643,-500.0,0.00023178,9]
[334154872,1722798680653,-500.0,0.00023178,9]
[334154873,1722798680663,-500.0,0.00023178,9]
[334154874,1722798680674,-2223.1,0.00023178,9]
[334154875,1722798680684,-500.0,0.00023178,9]
[334154876,1722798680694,-602.17965898,0.00023178,9]
[334154877,1722798682770,-629.9,0.00014931,2]
[334154878,1722798682783,-399.1,0.00014931,2]
[334154879,1722798682793,-32.785,0.00023013,9]